fUST/lending_fUST_20240807
["ID","MTS","AMOUNT","RATE_DAILY","PERIOD"]
[334380917,1723011041193,-668.56,0.00032602,7]
[334380918,1723011041203,-668.56,0.00032602,7]
[334380919,1723011041214,-668.56,0.00032602,7]
[334380920,1723011041227,-668.56,0.00032602,7]
[334380921,1723011041238,-668.56,0.00032602,7]
[334380922,1723011041249,-668.56,0.00032602,7]
[334380923,1723011041259,-668.56,0.00032602,7]
[334380924,1723011041269,-668.56,0.00032602,7]
[334380925,1723011041279,-668.76,0.00032602,7]
[334380926,1723011041290,-580.878227,0.00032602,7]
[334380927,1723011041301,-997.290966,0.00032602,7]
[334380928,1723011041310,-997.290966,0.00032602,7]
[334380929,1723011041320,-552.050044,0.00032602,7]
[334380930,1723011041332,-552.050044,0.00032602,7]
[334380931,1723011041342,-269.840624,0.00032602,7]
[334380932,1723011041353,-269.840624,0.00032602,7]
[334380933,1723011041363,-299.835624,0.0003269,7]
[334380934,1723011041374,-14409.229837,0.000327,4]
[334380935,1723011041384,-151.0,0.00032774,7]
[334380936,1723011041395,-233.069996,0.00032774,7]
[334380937,1723011041407,-527.224174,0.00032774,7]
[334380938,1723011041417,-527.224174,0.00032774,7]
[334380939,1723011041427,-233.069996,0.00032774,7]
[334380940,1723011041437,-151.0,0.00032774,7]
[334380941,1723011041447,-151.0,0.00032774,7]
[334380942,1723011041457,-248.254794,0.00032774,7]
[334380943,1723011041468,-248.254794,0.00032774,7]
[334380944,1723011041478,-289.842472,0.00032774,7]
[334380945,1723011041486,-289.842472,0.00032774,7]
[334380946,1723011041495,-553.989107,0.00032774,7]
[334380947,1723011041505,-553.989107,0.00032774,7]
[334380948,1723011041514,-693.472413,0.00032774,7]
[334380949,1723011041523,-693.472413,0.00032774,7]
[334380950,1723011041533,-151.0,0.00032774,7]
[334380951,1723011041544,-151.0,0.00032774,7]
[334380952,1723011041553,-175.698448,0.00032864,7]
[334380953,1723011041563,-200.0,0.00032873,5]
[334380954,1723011041572,-208.65473923,0.00032873,5]
[334380955,1723011041582,-200.0,0.00032873,5]
[334380956,1723011041592,-200.0,0.00032873,5]
[334380957,1723011041602,-200.0,0.00032873,5]
[334380958,1723011041613,-4567.85003922,0.00032873,2]
[334380959,1723011041624,-233.069996,0.00032874,7]
[334380960,1723011041634,-527.224174,0.00032874,7]
[334380961,1723011041644,-527.224174,0.00032874,7]
[334380962,1723011041653,-233.069996,0.00032874,7]
[334380963,1723011041662,-58581.99051158,0.00032874,14]
[334380964,1723011041673,-63186.22792851,0.00032874,14]
[334380965,1723011041681,-151.0,0.00032874,7]
[334380966,1723011041691,-248.254794,0.00032874,7]
[334380967,1723011041700,-248.254794,0.00032874,7]
[334380968,1723011041710,-289.842472,0.00032874,7]
[334380969,1723011041720,-289.842472,0.00032874,7]
[334380970,1723011041731,-553.989107,0.00032874,7]
[334380971,1723011041743,-553.989107,0.00032874,7]
[334380972,1723011041752,-693.472413,0.00032874,7]
[334380973,1723011041762,-693.472413,0.00032874,7]
[334380974,1723011041772,-151.0,0.00032874,7]
[334380975,1723011041783,-151.0,0.00032874,7]
[334380976,1723011041793,-799.852069,0.00032874,7]
[334380977,1723011041802,-799.852069,0.00032874,7]
[334380978,1723011041812,-247.137845,0.00032874,7]
[334380979,1723011041821,-247.137845,0.00032874,7]
[334380980,1723011041831,-151.0,0.00032874,7]
[334380981,1723011041842,-151.0,0.00032874,7]
[334380982,1723011041854,-699.737617,0.00032874,7]
[334380983,1723011041863,-174.803161,0.00032874,7]
[334380984,1723011041872,-699.737617,0.00032874,7]
[334380985,1723011041883,-580.878227,0.00032874,7]
[334380986,1723011041892,-580.878227,0.00032874,7]
[334380987,1723011041901,-997.290966,0.00032874,7]
[334380988,1723011041911,-997.290966,0.00032874,7]
[334380989,1723011041920,-552.050044,0.00032874,7]
[334380990,1723011041930,-552.050044,0.00032874,7]
[334380991,1723011041939,-269.840624,0.00032874,7]
[334380992,1723011041949,-269.840624,0.00032874,7]
[334380993,1723011041958,-1513.58077823,0.00032875,14]
[334380994,1723011041967,-160.0,0.00032875,10]
[334380995,1723011041977,-151.0,0.00032875,7]
[334380996,1723011041986,-248.254794,0.00032875,7]
[334380997,1723011041995,-248.254794,0.00032875,7]
[334380998,1723011042006,-289.842472,0.00032875,7]
[334380999,1723011042016,-289.842472,0.00032875,7]
[334381000,1723011042026,-553.989107,0.00032875,7]
[334381001,1723011042035,-553.989107,0.00032875,7]
[334381002,1723011042044,-160.0,0.00032875,10]
[334381003,1723011042054,-500.0,0.00032876,2]
[334381004,1723011042064,-12841.21468096,0.00032876,21]
[334381005,1723011042074,-160.0,0.00032876,3]
[334381006,1723011042083,-162.34820883,0.00032876,5]
[334381007,1723011042094,-500.0,0.00032876,14]
[334381008,1723011042105,-500.0,0.00032876,2]
[334381009,1723011042115,-500.0,0.00032876,14]
[334381010,1723011042124,-500.0,0.00032876,14]
[334381011,1723011042135,-304.84690658,0.00032876,14]
[334381012,1723011042148,-500.0,0.00032876,14]
[334381013,1723011042158,-636.15,0.00032876,14]
[334381014,1723011042166,-1757.88,0.00032876,14]
[334381015,1723011042180,-825.27,0.00032876,14]
[334381016,1723011042192,-338.00009204,0.00032876,14]
[334381017,1723011042206,-500.5412421,0.00032876,14]
[334381018,1723011042219,-501.92966641,0.00032876,14]
[334381019,1723011042230,-552.55823408,0.00032876,14]
[334381020,1723011042241,-1070.18,0.00032876,14]
[334381021,1723011042251,-502.49650793,0.00032876,14]
[334381022,1723011042260,-703.63,0.00032876,14]
[334381023,1723011042270,-500.0,0.00032876,14]
[334381024,1723011042279,-500.0,0.00032876,14]
[334381025,1723011042288,-501.78251023,0.00032876,14]
[334381026,1723011042298,-569.34,0.00032876,14]
[334381027,1723011042308,-500.0,0.00032876,14]
[334381028,1723011042319,-500.0,0.00032876,14]
[334381029,1723011042328,-500.0,0.00032876,14]
[334381030,1723011042337,-500.0,0.00032876,14]
[334381031,1723011042347,-2462.53,0.00032876,14]
[334381032,1723011042356,-500.0,0.00032876,14]
[334381033,1723011042365,-500.0,0.00032876,14]
[334381034,1723011042375,-500.0,0.00032876,14]
[334381035,1723011042385,-528.80456272,0.00032876,14]
[334381036,1723011042394,-964.16,0.00032876,14]
[334381037,1723011042406,-500.0,0.00032876,14]
[334381038,1723011042416,-503.11,0.00032876,14]
[334381039,1723011042427,-500.0,0.00032876,14]
[334381040,1723011042436,-500.0,0.00032876,14]
[334381041,1723011042446,-501.75133157,0.00032876,14]
[334381042,1723011042455,-500.0,0.00032876,14]
[334381043,1723011042463,-579.24,0.00032876,14]
[334381044,1723011042472,-534.65,0.00032876,14]
[334381045,1723011042482,-500.0,0.00032876,14]
[334381046,1723011042493,-2078.45,0.00032876,14]
[334381047,1723011042503,-500.0,0.00032876,14]
[334381048,1723011042512,-500.0,0.00032876,14]
[334381049,1723011042522,-1007.8,0.00032876,14]
[334381050,1723011042533,-500.0,0.00032876,14]
[334381051,1723011042544,-502.31775371,0.00032876,14]
[334381052,1723011042554,-911.24,0.00032876,14]
[334381053,1723011042563,-500.0,0.00032876,14]
[334381054,1723011042572,-502.18392716,0.00032876,14]
[334381055,1723011042581,-500.0,0.00032876,14]
[334381056,1723011042590,-1252.66,0.00032876,14]
[334381057,1723011042599,-530.42,0.00032876,14]
[334381058,1723011042609,-500.0,0.00032876,14]
[334381059,1723011042619,-500.0,0.00032876,14]
[334381060,1723011042631,-500.0,0.00032876,10]
[334381061,1723011042640,-501.72817588,0.00032876,14]
[334381062,1723011042651,-500.98147067,0.00032876,14]
[334381063,1723011042660,-502.56006559,0.00032876,14]
[334381064,1723011042672,-500.0,0.00032876,14]
[334381065,1723011042682,-824.74,0.00032876,14]
[334381066,1723011042692,-500.0,0.00032876,14]
[334381067,1723011042701,-500.0,0.00032876,14]
[334381068,1723011042711,-500.0,0.00032876,14]
[334381069,1723011042722,-500.0,0.00032876,14]
[334381070,1723011042731,-183.84840825,0.00032876,14]
[334381071,1723011042741,-756.19,0.00032876,14]
[334381072,1723011042751,-212.56,0.00032876,14]
[334381074,1723011042760,-500.0,0.00032876,14]
[334381075,1723011042768,-473.11048063,0.00032876,14]
[334381077,1723011042778,-493.63632707,0.00032876,14]
[334381080,1723011042798,-6.36367293,0.00032876,14]
[334381082,1723011042807,-803.23,0.00032876,14]
[334381084,1723011042816,-500.0,0.00032876,14]
[334381086,1723011042825,-405.7183097,0.00032876,14]
[334381088,1723011042837,-513.74835961,0.00032876,2]
[334381090,1723011042847,-500.0,0.00032876,14]
[334381092,1723011042856,-500.0,0.00032876,14]
[334381095,1723011042865,-718.28,0.00032876,14]
[334381097,1723011042874,-500.0,0.00032876,14]
[334381098,1723011042884,-500.0,0.00032876,14]
[334381099,1723011042896,-500.0,0.00032876,14]
[334381100,1723011042905,-500.0,0.00032876,14]
[334381101,1723011042915,-588.05,0.00032876,14]
[334381102,1723011042926,-500.0,0.00032876,14]
[334381103,1723011042936,-500.0,0.00032876,14]
[334381105,1723011042945,-500.0,0.00032876,14]
[334381107,1723011042954,-500.0,0.00032876,14]
[334381109,1723011042963,-500.0,0.00032876,14]
[334381111,1723011042972,-662.13,0.00032876,14]
[334381113,1723011042982,-490.04561637,0.00032876,14]
[334381115,1723011042994,-500.0,0.00032876,14]
[334381117,1723011043004,-500.0,0.00032876,14]
[334381119,1723011043015,-500.0,0.00032876,14]
[334381121,1723011043026,-500.0,0.00032876,14]
[334381123,1723011043037,-500.0,0.00032876,14]
[334381126,1723011043048,-500.0,0.00032876,14]
[334381128,1723011043058,-1179.9,0.00032876,14]
[334381130,1723011043068,-500.0,0.00032876,14]
[334381132,1723011043078,-500.0,0.00032876,14]
[334381134,1723011043087,-262.31712598,0.00032876,14]
[334381136,1723011043098,-500.0,0.00032876,14]
[334381138,1723011043109,-1793.79,0.00032876,14]
[334381139,1723011043119,-500.0,0.00032876,14]
[334381141,1723011043131,-646.2,0.00032876,14]
[334381143,1723011043144,-500.0,0.00032876,14]
[334381145,1723011043154,-500.0,0.00032876,14]
[334381146,1723011043164,-500.0,0.00032876,14]
[334381147,1723011043174,-815.06,0.00032876,14]
[334381148,1723011043185,-500.0,0.00032876,14]
[334381149,1723011043195,-500.0,0.00032876,14]
[334381150,1723011043209,-623.79,0.00032876,14]
[334381151,1723011043220,-253.96765736,0.00032876,14]
[334381153,1723011043230,-2304.29,0.00032876,14]
[334381154,1723011043239,-205.25755922,0.00032876,14]
[334381157,1723011044350,-306.454406,0.00026281,7]
[334381158,1723011044359,-151.0,0.00026281,7]
[334381159,1723011044369,-1502.53,0.00029822,3]
[334381160,1723011044378,-306.454406,0.00029832,7]
[334381161,1723011044387,-306.454406,0.00029932,7]
[334381162,1723011044397,-306.454406,0.0002995,7]
[334381163,1723011044407,-306.454406,0.00032381,7]
[334381164,1723011044416,-306.454406,0.00032874,7]
[334381165,1723011044427,-294.74244078,0.00032876,14]
[334381166,1723011044437,-500.0,0.00032876,14]
[334381167,1723011044447,-550.55,0.00032876,14]
[334381168,1723011044456,-500.0,0.00032876,14]
[334381169,1723011044465,-500.0,0.00032876,14]
[334381170,1723011044475,-1109.47,0.00032876,14]
[334381171,1723011044485,-731.4,0.00032876,14]
[334381172,1723011044495,-444.26446791,0.00032876,14]
[334381173,1723011044504,-500.0,0.00032876,14]
[334381174,1723011044513,-692.76,0.00032876,14]
[334381175,1723011044523,-501.43000007,0.00032876,14]
[334381176,1723011044532,-500.0,0.00032876,14]
[334381177,1723011044542,-502.97499578,0.00032876,14]
[334381178,1723011044551,-500.0,0.00032876,14]
[334381179,1723011044561,-1251.4,0.00032876,14]
[334381180,1723011044571,-500.0,0.00032876,14]
[334381181,1723011044581,-500.0,0.00032876,2]
[334381182,1723011044591,-500.0,0.00032876,14]
[334381183,1723011044602,-500.0,0.00032876,2]
[334381184,1723011044612,-502.21277357,0.00032876,14]
[334381185,1723011044624,-500.0,0.00032876,2]
[334381186,1723011044634,-493.44387522,0.00032876,2]
[334381187,1723011044645,-501.83121288,0.00032876,14]
[334381188,1723011044654,-500.0,0.00032876,14]
[334381189,1723011044663,-509.67,0.00032876,14]
[334381190,1723011044673,-500.0,0.00032876,14]
[334381191,1723011044683,-736.94,0.00032876,14]
[334381192,1723011044693,-1006.37,0.00032876,14]
[334381193,1723011044704,-500.0,0.00032876,14]
[334381194,1723011044714,-668.75,0.00032876,14]
[334381195,1723011044724,-2305.96,0.00032876,14]
[334381196,1723011044734,-557.87,0.00032876,14]
[334381197,1723011044743,-977.42,0.00032876,14]
[334381198,1723011044752,-500.82,0.00032876,14]
[334381199,1723011044761,-500.0,0.00032876,14]
[334381200,1723011044771,-500.0,0.00032876,14]
[334381201,1723011044780,-500.0,0.00032876,14]
[334381202,1723011044789,-500.0,0.00032876,14]
[334381203,1723011044799,-409.32467682,0.00032876,14]
[334381204,1723011044808,-500.0,0.00032876,14]
[334381205,1723011044820,-500.0,0.00032876,14]
[334381206,1723011044830,-500.0,0.00032876,14]
[334381207,1723011044840,-1779.67,0.00032876,14]
[334381208,1723011044851,-500.0,0.00032876,14]
[334381209,1723011044861,-788.52,0.00032876,14]
[334381210,1723011044871,-500.0,0.00032876,14]
[334381211,1723011044880,-500.0,0.00032876,14]
[334381212,1723011044890,-500.0,0.00032876,14]
[334381213,1723011044901,-620.86,0.00032876,14]
[334381214,1723011044911,-500.0,0.00032876,14]
[334381215,1723011044922,-500.0,0.00032876,14]
[334381216,1723011044931,-573.06,0.00032876,14]
[334381217,1723011044940,-550.53,0.00032876,14]
[334381218,1723011044950,-608.83,0.00032876,14]
[334381219,1723011044959,-575.76,0.00032876,14]
[334381220,1723011044969,-500.0,0.00032876,14]
[334381221,1723011044978,-500.0,0.00032876,14]
[334381222,1723011044987,-500.0,0.00032876,14]
[334381223,1723011044997,-500.0,0.00032876,14]
[334381224,1723011045007,-619.27600495,0.00032876,14]
[334381225,1723011045017,-558.54,0.00032876,14]
[334381226,1723011045027,-562.47,0.00032876,14]
[334381227,1723011045036,-500.0,0.00032876,14]
[334381228,1723011045047,-455.23540212,0.00032876,14]
[334381229,1723011045056,-500.0,0.00032876,14]
[334381230,1723011045066,-3130.09,0.00032876,14]
[334381231,1723011045076,-500.0,0.00032876,14]
[334381232,1723011045085,-500.0,0.00032876,14]
[334381233,1723011045095,-200.1595445,0.00032876,14]
[334381234,1723011045104,-500.0,0.00032876,14]
[334381235,1723011045113,-501.92097901,0.00032876,14]
[334381236,1723011045122,-500.0,0.00032876,14]
[334381237,1723011045131,-500.0,0.00032876,14]
[334381238,1723011045143,-288.75514845,0.00032876,14]
[334381267,1723011046597,-5300.0,0.00018125,2]
[334381268,1723011050020,273.37336231,9.9e-05,2]
[334381269,1723011066377,273.37336231,9.9e-05,2]
[334381270,1723011074816,273.37336231,9.9e-05,2]
[334381271,1723011083132,273.37336231,9.9e-05,2]
[334381272,1723011086242,36274.30994908,0.00012,2]
[334381273,1723011086393,667.53663676,0.00012,2]
[334381274,1723011086879,154.71377951,0.00012,2]
[334381276,1723011091067,273.37336231,9.9e-05,2]
[334381277,1723011099245,273.37336231,9.9e-05,2]
[334381278,1723011107388,156.74439841,0.00012,2]
[334381279,1723011111501,568.61673654,0.00012,2]
[334381280,1723011117697,158.51480666,9.9e-05,2]
[334381281,1723011132560,191.68298201,0.00013915,2]
[334381282,1723011136914,154.80647646,0.00012,2]
[334381283,1723011161170,158.29554006,0.00012,2]
[334381284,1723011168569,979.19407465,0.00013915,2]
[334381285,1723011174426,5301.49489254,0.00012,2]
[334381292,1723011409018,290.41326156,9.999e-05,2]
[334381345,1723011757019,404.543835,0.00014001,2]
[334381349,1723011864675,727.75567093,9.999e-05,2]
[334381352,1723011924798,932.36255016,9.999e-05,2]
[334381353,1723011925443,356.48865902,9.999e-05,2]
[334381354,1723011935293,154.96696379,9.999e-05,2]
[334381355,1723011936219,240.87977821,9.999e-05,2]
[334381356,1723011937974,417.47527685,9.999e-05,2]
[334381357,1723011956044,494.69205879,9.999e-05,2]
[334381358,1723011961205,181.44458836,9.999e-05,2]
[334381359,1723011964609,155.21101905,9.999e-05,2]
[334381360,1723011972286,205.28735846,9.999e-05,2]
[334381361,1723011982174,779.56253199,9.999e-05,2]
[334381362,1723011984614,600.8534117,9.999e-05,2]
[334381363,1723011985918,167.4827941,9.999e-05,2]
[334381364,1723011986349,403.58801614,9.999e-05,2]
[334381365,1723011987163,156.8188046,9.999e-05,2]
[334381366,1723011991939,342.07838654,9.999e-05,2]
[334381367,1723012006060,201.4758121,9.999e-05,2]
[334381368,1723012035410,470.88148729,9.999e-05,2]
[334381369,1723012038502,154.71377951,9.999e-05,2]
[334381371,1723012082057,24900.0,0.00014001,2]
[334381372,1723012100125,154.93260904,9.999e-05,2]
[334381373,1723012101541,155.20772779,0.0001212,2]
[334381376,1723012127947,154.71377951,9.999e-05,2]
[334381379,1723012151282,-222.167782,0.00014247,2]
[334381380,1723012151308,-40.64960466,0.00014247,2]
[334381404,1723012232463,-117.20332834,0.00014247,2]
[334381405,1723012232475,-269.69558364,0.0001469,2]
[334381406,1723012232484,-300.0,0.00014999,2]
[334381407,1723012232494,-300.0,0.00014999,2]
[334381408,1723012232507,-600.0,0.00015,2]
[334381411,1723012232516,-912.4763458,0.00015,2]
[334381413,1723012232525,-2778.62474222,0.00015,2]
[334381417,1723012232537,-2457.59525449,0.00015,2]
[334381420,1723012232546,-250.0,0.00015383,2]
[334381423,1723012232555,-129.05474551,0.00015425,2]
[334381425,1723012232567,-120.94525449,0.00015425,2]
[334381427,1723012232576,-144.05474551,0.00015467,2]
[334381462,1723012238723,-105.94525449,0.00015467,2]
[334381464,1723012238733,-250.0,0.0001551,2]
[334381465,1723012238742,-250.0,0.00015552,2]
[334381467,1723012238752,-250.0,0.00015594,2]
[334381469,1723012238761,-250.0,0.00015636,2]
[334381471,1723012238770,-250.0,0.00015678,2]
[334381473,1723012238780,-2139.82745581,0.00015708,2]
[334381476,1723012238793,-2125.17422013,0.00015708,2]
[334381478,1723012238804,-2274.39959048,0.00015708,2]
[334381480,1723012238815,-1714.90622422,0.00015708,2]
[334381482,1723012238825,-250.0,0.0001572,2]
[334381484,1723012238836,-250.0,0.00015763,2]
[334381486,1723012238846,-250.0,0.00015805,2]
[334381488,1723012238856,-250.0,0.00015847,2]
[334381490,1723012238866,-250.0,0.00015889,2]
[334381492,1723012238875,-250.0,0.00015931,2]
[334381494,1723012238886,-1794.59755427,0.00015952,2]
[334381496,1723012238896,-250.0,0.00015974,2]
[334381498,1723012238906,-250.0,0.00016016,2]
[334381500,1723012238916,-250.0,0.00016058,2]
[334381502,1723012238926,-250.0,0.000161,2]
[334381503,1723012238936,-250.0,0.00016142,2]
[334381505,1723012238947,-250.0,0.00016185,2]
[334381507,1723012238957,-277.26634811,0.000165,2]
[334381509,1723012238967,-154.85457168,0.00016988,2]
[334381511,1723012238976,-154.71377951,0.00017269,2]
[334381513,1723012238987,-3224.81474819,0.00018125,2]
[334381515,1723012238999,-3224.81474819,0.00018125,2]
[334381517,1723012239010,-250.0,0.00019041,2]
[334381519,1723012239020,-184.332407,0.00019178,2]
[334381521,1723012239029,-191.449929,0.00019178,2]
[334381523,1723012239041,-1373.42728958,0.000199,2]
[334381525,1723012239051,-154.71377951,0.0002,2]
[334381527,1723012239061,-435.0,0.0002,2]
[334381528,1723012239071,-154.86507824,0.0002,2]
[334381529,1723012239082,-156.35315554,0.0002,2]
[334381530,1723012239093,-154.71377951,0.0002,2]
[334381531,1723012239104,-294.18278188,0.0002,2]
[334381532,1723012239115,-1625.81763535,0.0002,2]
[334381533,1723012239128,-10488.56500567,0.0002,2]
[334381534,1723012239138,-154.71377951,0.0002,2]
[334381535,1723012239147,-1444.11606649,0.0002,2]
[334381536,1723012239157,-222.167782,0.00020707,2]
[334381537,1723012239166,-515.71888501,0.00020999,2]
[334381538,1723012239176,-296.95255386,0.00021,2]
[334381539,1723012239187,-404.543835,0.00021002,2]
[334381540,1723012239198,-2063.03559571,0.00022,2]
[334381541,1723012239208,-881.79875023,0.0002217,2]
[334381542,1723012239218,-1373.42728951,0.00022327,2]
[334381543,1723012239229,-3052.60929039,0.00023,2]
[334381544,1723012239238,-318.43218184,0.00024,2]
[334381545,1723012239249,-1373.42728951,0.00024753,2]
[334381546,1723012239259,-1357.61,0.0002499,3]
[334381547,1723012239268,-2119.68,0.0002499,3]
[334381548,1723012239277,-1766.4,0.0002499,3]
[334381549,1723012239287,-500.0,0.00024999,2]
[334381550,1723012239295,-603.08709004,0.00024999,2]
[334381551,1723012239306,-500.0,0.00024999,2]
[334381552,1723012239316,-500.0,0.00024999,2]
[334381553,1723012239326,-500.0,0.00024999,2]
[334381554,1723012239338,-500.0,0.00024999,2]
[334381555,1723012239349,-500.0,0.00024999,2]
[334381556,1723012239358,-500.0,0.00024999,2]
[334381557,1723012239368,-1363.69574407,0.00025,2]
[334381558,1723012239382,-154.80649189,0.00025,2]
[334381559,1723012239391,-1027.58819272,0.00025,2]
[334381560,1723012239400,-45208.88356052,0.00025,2]
[334381561,1723012239410,-2335.15060917,0.00025,2]
[334381562,1723012239419,-7458.94652043,0.0002649,2]
[334381563,1723012239429,-9421.35258831,0.000265,2]
[334381564,1723012239441,-222.167782,0.00027167,2]
[334381565,1723012239452,-1373.42728951,0.0002718,2]
[334381566,1723012239461,-305.60627343,0.0002739,2]
[334381567,1723012239471,-634.26588816,0.00027445,2]
[334381568,1723012239480,-43759.89301678,0.000275,2]
[334381569,1723012239489,-38058.9829323,0.0002798,3]
[334381570,1723012239499,-6000.0,0.00028,7]
[334381571,1723012239512,-1000.0,0.00029,29]
[334381572,1723012239521,-150.112233,0.00029,5]
[334381573,1723012239531,-851.08717755,0.00029,2]
[334381574,1723012239540,-150.112233,0.000294,7]
[334381575,1723012239550,-1373.42728951,0.00029606,2]
[334381576,1723012239559,-150.112233,0.000298,5]
[334381577,1723012239569,-38058.9829323,0.0002998,4]
[334381578,1723012239578,-38058.9829323,0.0002999,4]
[334381579,1723012239589,-68409.00216078,0.0003,2]
[334381580,1723012239599,-154.71377951,0.0003,4]
[334381581,1723012239608,-154.71377951,0.0003,2]
[334381582,1723012239617,-481.0,0.0003,2]
[334381583,1723012239629,-4817.19,0.0003,96]
[334381584,1723012239638,-249.0,0.0003,2]
[334381585,1723012239647,-151.0,0.0003,120]
[334381586,1723012239657,-198.0,0.0003,2]
[334381587,1723012239666,-261.0,0.0003,2]
[334381588,1723012239676,-1411.0,0.00030009,2]
[334381589,1723012239685,-150.0,0.00030009,2]
[334381590,1723012239695,-507.0,0.00030009,2]
[334381591,1723012239705,-150.112233,0.000302,8]
[334381592,1723012239715,-481.0,0.00030411,2]
[334381593,1723012239724,-261.0,0.00030411,2]
[334381594,1723012239734,-151.0,0.00030449,6]
[334381595,1723012239743,-151.0,0.00030449,6]
[334381596,1723012239753,-150.112233,0.000306,9]
[334381597,1723012239763,-481.0,0.00030685,2]
[334381598,1723012239774,-150.112233,0.000309,7]
[334381599,1723012239784,-481.0,0.00030959,2]
[334381600,1723012239793,-6799.83831419,0.00031,2]
[334381601,1723012239803,-481.0,0.00031233,2]
[334381602,1723012239813,-150.112233,0.000313,8]
[334381603,1723012239823,-608.735686,0.00031507,120]
[334381604,1723012239833,-600.0,0.00031561,2]
[334381605,1723012239843,-34538.71035141,0.00031634,4]
[334381611,1723012240419,-1137.16,0.00031634,4]
[334381669,1723012246643,-2383.11258089,0.00031634,4]
[334381670,1723012246654,-481.0,0.00031644,2]
[334381671,1723012246664,-199.0,0.00031644,2]
[334381672,1723012246674,-261.0,0.00031644,2]
[334381673,1723012246684,-150.112233,0.000317,10]
[334381674,1723012246693,-2096.65245888,0.00031707,2]
[334381686,1723013149520,510.84806549,9.999e-05,2]
[334381759,1723013433969,-157.852933,0.00014247,2]
[334381761,1723013433981,-201.800676,0.00014247,2]
[334381763,1723013433993,-293.54215785,0.00015,2]
[334381766,1723013434006,-277.26634811,0.00016532,2]
[334381768,1723013434018,-3869.97975247,0.00018079,2]
[334381856,1723013438954,-2001.64,0.00018079,2]
[334381865,1723013439022,-2584.13981503,0.00018079,2]
[334381940,1723013443923,-13297.0208775,0.00018079,2]
[334381941,1723013443939,-250.0,0.00018358,2]
[334381942,1723013443949,-235.03633697,0.00018408,2]
[334381989,1723013461915,180.05166463,0.0001212,2]
[334381990,1723013462268,1299.17658537,0.00013,2]
[334381991,1723013470592,165.54898858,0.0001212,2]
[334381992,1723013470797,3087.63872233,0.0001212,2]
[334381993,1723013471107,1382.92970052,0.0001212,2]
[334381994,1723013471373,1500.0,0.0001212,2]
[334381995,1723013472491,156.74439841,0.0001212,2]
[334381996,1723013473076,1162.86940617,0.0001212,2]
[334381997,1723013473284,20759.5327798,0.0001212,2]
[334381998,1723013473821,174.61974906,0.0001212,2]
[334381999,1723013475584,154.72922386,0.0001212,2]
[334382000,1723013475735,1794.59755427,0.0001212,2]
[334382001,1723013476076,1610.68802731,0.0001212,2]
[334382002,1723013476867,180.05166463,0.0001212,2]
[334382003,1723013479233,35022.02035591,0.0001212,2]
[334382004,1723013479423,197.60446965,0.0001212,2]
[334382005,1723013479568,188.2335741,0.0001212,2]
[334382006,1723013479630,175.87454345,0.0001212,2]
[334382007,1723013479663,205.20449904,0.0001212,2]
[334382008,1723013480552,154.72922386,0.0001212,2]
[334382009,1723013480621,1991.65402436,0.0001212,2]
[334382010,1723013480862,287.48390331,0.0001212,2]
[334382011,1723013480976,1438.29474334,0.0001212,2]
[334382012,1723013482318,2162.60520141,0.0001212,2]
[334382013,1723013485524,780.99414722,0.0001212,2]
[334382014,1723013486004,7001.77703298,0.0001212,2]
[334382015,1723013486407,1715.68394884,0.0001212,2]
[334382016,1723013487472,174.54270234,0.0001212,2]